bitfinex/quotes_SOLUSD_20250922
["timestamp","ask_amount","ask_price","bid_price","bid_amount"]
[1758529867441,0.7,221.97,221.88,85.10680931]
[1758529867859,7.5012719,221.99,221.9,4.50653447]
[1758529868164,7.5012719,221.99,221.91,0.68]
[1758529868971,4.50489375,221.99,221.91,0.68]
[1758529870057,4.50489375,221.99,221.92,4.50612833]
[1758529871045,0.7,222.0,221.92,4.50612833]
[1758529871247,0.7,222.0,221.92,5.18612833]
[1758529871864,5.20453264,222.0,221.92,5.18612833]
[1758529872270,2.99637815,222.02,221.92,15.77144916]
[1758529872461,5.18415392,222.02,221.93,0.7]
[1758529872842,5.18415392,222.02,221.9,0.7]
[1758529873044,0.68,222.02,221.91,4.50633139]
[1758529873360,0.68,222.04,221.92,0.7]
[1758529873674,4.50328739,222.06,221.93,5.32949049]
[1758529873872,4.50328739,222.06,221.94,0.7]
[1758529874247,7.49966554,222.06,221.94,0.7]
[1758529874664,8.17966554,222.06,221.94,0.7]
[1758529874856,8.17966554,222.06,221.95,15.76931741]
[1758529875064,8.17966554,222.06,221.96,0.7]
[1758529875858,8.17966554,222.06,221.97,4.5051133]
[1758529876366,8.17966554,222.06,221.97,5.2051133]
[1758529876542,8.17966554,222.06,221.97,16.46789655]
[1758529877165,3.67637815,222.06,221.97,16.46789655]
[1758529877369,3.67637815,222.06,222.0,5.32949049]
[1758529877370,2.99637815,222.06,222.0,5.32949049]
[1758529877552,0.68,222.1,222.01,0.7]
[1758529878052,5.18267835,222.1,222.02,4.50409872]
[1758529878252,8.86289455,222.1,222.02,0.7]
[1758529879170,2.99142642,222.09,221.98,0.7]
[1758529879365,0.68,222.08,221.98,0.7]
[1758529879951,2.99142642,222.09,221.99,15.76647595]
[1758529880154,3.6802162,222.1,222.0,0.7]
[1758529880475,5.18267909,222.09,222.0,0.7]
[1758529880770,16.43937682,222.09,222.0,0.7]
[1758529880974,16.43937682,222.09,221.98,4.50489334]
[1758529881156,3.66897049,222.08,221.98,5.20489334]
[1758529881473,0.68,222.07,221.98,5.20489334]
[1758529882755,0.68,222.07,221.98,85.80489334]
[1758529883465,4.5031743,222.07,221.99,0.7]
[1758529883664,5.1831743,222.07,221.99,0.7]
[1758529883857,16.44088583,222.07,221.99,0.7]
[1758529884049,16.44088583,222.07,221.98,80.6]
[1758529884253,15.76221571,222.05,221.96,4.50531157]
[1758529884454,0.68,222.04,221.96,85.10531157]
[1758529884670,15.76221571,222.05,221.96,85.10531157]
[1758529884974,0.68,222.03,221.96,85.10531157]
[1758529885565,4.50409872,222.02,221.96,85.10531157]
[1758529886156,0.68,222.03,221.96,85.10531157]
[1758529886355,4.5033403,222.06,221.97,0.7]
[1758529887365,5.1733403,222.06,221.97,0.7]
[1758529887580,16.43155879,222.06,221.98,4.50491035]
[1758529887777,4.50296692,222.08,221.99,0.72]
[1758529888079,0.67,222.07,221.99,0.72]
[1758529888278,0.67,222.07,221.99,81.32]
[1758529888660,15.76017153,222.08,222.0,0.72]
[1758529888872,0.67,222.07,222.0,0.72]
[1758529889078,0.67,222.07,221.99,80.6]
[1758529889670,4.50328739,222.06,221.99,85.10450469]
[1758529889864,0.67,222.05,221.99,80.6]
[1758529890372,4.50328739,222.06,221.99,80.6]
[1758529890676,5.17297896,222.08,222.0,0.72]
[1758529890879,5.17297896,222.08,222.0,81.32]
[1758529891683,5.17297896,222.08,222.0,85.82432519]
[1758529891879,2.98483606,222.09,222.01,0.72]
[1758529892180,7.4873946,222.1,222.01,86.64949049]
[1758529892379,8.06954124,222.1,222.02,0.72]
[1758529892983,7.48709433,222.12,222.02,0.72]
[1758529893181,4.50225827,222.12,222.02,81.32]
[1758529893369,0.67,222.11,222.02,81.32]
[1758529893567,0.67,222.1,222.02,81.32]
[1758529893877,4.50267909,222.09,222.03,4.50389586]
[1758529894276,4.50267909,222.09,222.03,41.46389586]
[1758529894668,11.25517738,222.12,222.03,41.46389586]
[1758529894669,7.49060763,222.11,222.03,41.46389586]
[1758529894868,5.17211699,222.12,222.04,0.72]
[1758529895185,4.50211699,222.12,222.04,0.72]
[1758529895368,8.12032665,222.12,222.04,0.72]
[1758529895562,8.79032665,222.12,222.04,0.72]
[1758529895759,2.98898353,222.11,222.04,5.22368304]
[1758529895959,8.79047018,222.12,222.05,0.72]
[1758529896280,2.98955062,222.11,222.05,0.72]
[1758529896474,2.98955062,222.11,222.05,81.32]
[1758529896663,3.65955062,222.14,222.06,0.72]
[1758529896866,5.17168214,222.14,222.06,0.72]
[1758529897883,16.42584618,222.14,222.05,40.68340492]
[1758529898082,3.65955062,222.13,222.03,0.72]
[1758529898264,3.65955062,222.13,222.02,0.72]
[1758529899285,15.75724833,222.12,222.03,4.50389586]
[1758529899491,3.65955062,222.11,222.02,0.72]
[1758529900886,4.50247636,222.1,222.02,5.22409637]
[1758529901285,4.50247636,222.1,222.03,0.72]
[1758529902877,7.49185124,222.11,222.03,85.82384307]
[1758529903072,4.50230062,222.11,222.03,85.82384307]
[1758529903273,4.50230062,222.11,222.04,0.72]
[1758529903797,4.50203567,222.13,222.04,0.72]
[1758529903984,19.41625697,222.13,222.04,0.72]
[1758529904179,2.98955062,222.12,222.04,0.72]
[1758529904575,4.50227364,222.11,222.04,5.22368269]
[1758529904779,7.49164866,222.12,222.04,5.22368269]
[1758529904988,7.49164866,222.12,222.05,0.72]
[1758529905500,0.67,222.11,222.02,81.32]
[1758529905792,0.67,222.11,222.02,117.38]
[1758529906096,0.67,222.11,222.03,0.72]
[1758529906279,2.98955062,222.11,222.03,0.72]
[1758529906477,4.50209804,222.12,222.04,4.50369302]
[1758529906697,4.50209804,222.12,222.05,0.72]
[1758529907194,8.16144316,222.13,222.05,0.72]
[1758529907891,19.41611384,222.13,222.05,36.04]
[1758529908097,3.65955062,222.12,222.05,36.04]
[1758529908286,0.67,222.11,222.05,36.04]
[1758529908472,3.65955062,222.12,222.05,36.76]
[1758529908794,2.98955062,222.13,222.06,0.72]
[1758529908990,4.50189091,222.13,222.06,0.72]
[1758529909383,7.49144153,222.13,222.06,0.72]
[1758529909981,0.67,222.12,222.06,0.72]
[1758529910675,5.17212269,222.12,222.06,5.22322818]
[1758529911596,0.67,222.12,222.06,5.22322818]
[1758529911900,3.85955062,222.15,222.07,0.72]
[1758529912097,7.55300163,222.15,222.07,0.72]
[1758529912287,6.88300163,222.15,222.07,0.72]
[1758529912488,6.88300163,222.15,222.07,81.32]
[1758529912804,4.50177429,222.14,222.08,5.22269836]
[1758529913003,4.50177429,222.14,222.09,0.72]
[1758529913177,4.50177429,222.14,222.1,0.72]
[1758529913380,4.50177429,222.14,222.08,85.10269836]
[1758529913580,4.50177429,222.14,222.08,81.32]
[1758529913799,7.49132491,222.14,222.08,81.32]
[1758529914192,7.49132491,222.14,222.08,85.82280233]
[1758529915100,0.87,222.15,222.09,36.64]
[1758529915101,7.6910406,222.15,222.09,36.64]
[1758529915478,7.6910406,222.15,222.1,0.72]
[1758529915891,7.6910406,222.15,222.11,0.72]
[1758529916096,4.70148998,222.15,222.12,0.72]
[1758529917103,0.2,222.15,222.12,0.7]
[1758529917999,0.2,222.15,222.1,4.50233758]
[1758529918198,4.70152945,222.15,222.11,36.58]
[1758529918586,0.2,222.15,222.12,0.7]
[1758529918991,4.70152796,222.15,222.11,35.88]
[1758529919312,5.39152796,222.15,222.09,0.7]
[1758529919512,5.39152796,222.15,222.1,35.86]
[1758529919713,7.69107858,222.15,222.1,35.86]
[1758529919893,4.70152796,222.15,222.1,36.56]
[1758529920288,4.70152796,222.15,222.1,35.86]
[1758529920501,4.70152796,222.15,222.11,0.7]
[1758529920904,5.39152796,222.15,222.11,0.7]
[1758529921210,5.39152796,222.15,222.1,35.86]
[1758529921402,0.2,222.15,222.11,0.7]
[1758529922598,0.2,222.15,222.12,0.7]
[1758529922991,0.2,222.15,222.1,40.36245218]
[1758529923214,0.2,222.15,222.11,5.20217154]
[1758529923592,0.2,222.15,222.12,0.7]
[1758529923908,0.2,222.15,222.13,0.7]
[1758529924113,0.2,222.15,222.1,35.86]
[1758529924314,5.3914926,222.15,222.09,85.80265364]
[1758529924501,5.3914926,222.15,222.11,35.78]
[1758529924902,0.2,222.15,222.11,36.48]
[1758529925704,4.70150932,222.15,222.11,35.78]
[1758529925894,5.39150932,222.15,222.11,35.78]
[1758529926497,5.39150932,222.15,222.09,81.3]
[1758529926498,15.95516675,222.15,222.09,0.7]
[1758529926705,3.68861302,222.14,222.07,80.6]
[1758529927106,0.69,222.13,222.07,80.6]
[1758529927314,16.44724833,222.12,222.04,35.76]
[1758529927511,3.68861302,222.11,222.0,81.3]
[1758529927716,0.69,222.1,222.0,0.7]
[1758529927918,0.69,222.1,222.01,35.78]
[1758529928122,0.69,222.09,222.01,35.78]
[1758529928324,0.69,222.09,222.0,0.7]
[1758529928506,0.69,222.08,222.01,35.78]
[1758529929134,0.69,222.07,222.01,35.78]
[1758529929329,4.50328739,222.06,222.01,35.78]
[1758529929528,4.50328739,222.06,222.02,0.7]
[1758529930231,4.50286541,222.09,222.03,0.7]
[1758529930528,5.19286541,222.09,222.03,0.7]
[1758529930828,19.44660323,222.09,222.03,0.7]
[1758529931035,2.99704009,222.08,222.03,0.7]
[1758529931241,3.68704009,222.08,222.03,0.7]
[1758529931608,4.50308461,222.07,222.03,0.7]
[1758529931808,4.50308461,222.07,222.04,0.7]
[1758529932019,2.99704009,222.08,222.05,0.7]
[1758529932329,2.99704009,222.11,222.06,0.7]
[1758529932533,3.71704009,222.11,222.06,0.7]
[1758529932730,16.47873117,222.1,222.04,0.66]
[1758529932938,2.99704009,222.09,222.02,0.66]
[1758529933635,7.49980133,222.09,222.02,5.16402335]
[1758529933820,4.50276124,222.09,222.03,0.66]
[1758529934222,16.47945897,222.09,221.99,80.6]
[1758529934423,3.71704009,222.08,222.0,36.36]
[1758529934941,0.72,222.07,221.95,81.26]
[1758529935139,0.72,222.06,221.99,35.7]
[1758529935432,0.72,222.05,221.99,35.7]
[1758529935632,4.50369302,222.04,221.99,35.7]
[1758529935829,15.76292559,222.04,221.97,81.26]
[1758529936011,2.99719635,222.03,221.97,36.36]
[1758529936212,2.99719635,222.03,221.97,0.66]
[1758529936411,2.99719635,222.03,221.97,36.36]
[1758529938022,4.50409872,222.02,221.97,36.36]
[1758529938225,4.50409872,222.02,221.98,0.66]
[1758529938425,4.50409872,222.02,221.99,0.66]
[1758529939320,4.50409872,222.02,221.97,36.36]
[1758529939518,4.50409872,222.02,221.94,80.6]
[1758529939519,0.72,222.01,221.94,80.6]
[1758529939824,0.72,222.01,221.95,35.66]
[1758529940222,4.5045045,222.0,221.95,35.66]
[1758529940424,0.72,221.99,221.92,80.6]
[1758529940630,0.72,221.98,221.91,36.32]
[1758529940847,0.72,221.97,221.91,36.32]
[1758529941035,0.72,221.97,221.91,35.66]
[1758529941236,0.72,221.97,221.89,0.66]
[1758529941916,15.76860695,221.96,221.89,0.66]
[1758529942958,0.72,221.95,221.87,80.6]
[1758529943116,0.72,221.95,221.87,81.26]
[1758529943814,0.72,221.95,221.87,0.66]
[1758529944022,15.77002792,221.94,221.87,0.66]
[1758529944233,4.50572226,221.94,221.87,0.66]
[1758529947666,4.50572226,221.94,221.87,81.26]
[1758529947858,8.1102256,221.94,221.87,81.26]
[1758529948067,8.1102256,221.94,221.88,0.72]
[1758529948764,19.37453126,221.94,221.88,0.72]
[1758529948977,19.37453126,221.94,221.87,80.6]
[1758529948978,0.67,221.93,221.87,116.22]
[1758529949144,0.67,221.93,221.87,116.94]
[1758529950047,4.50612833,221.92,221.87,116.92]
[1758529950247,4.50612833,221.92,221.88,0.72]
[1758529951464,5.17612833,221.92,221.87,116.2]
[1758529951640,0.67,221.91,221.87,116.2]
[1758529951843,4.50612833,221.92,221.87,116.92]
[1758529952157,4.50612833,221.92,221.88,0.72]
[1758529953166,4.27450334,221.94,221.89,0.72]
[1758529953474,8.7803619,221.94,221.89,81.32]
[1758529954469,8.1103619,221.94,221.89,80.6]
[1758529954669,8.7803619,221.94,221.89,80.6]
[1758529954852,4.50531727,221.96,221.9,0.72]
[1758529955047,4.50531727,221.96,221.9,36.28]
[1758529955367,8.11162913,221.96,221.91,0.72]
[1758529955552,8.11162913,221.96,221.92,0.72]
[1758529955750,19.37491981,221.96,221.92,80.6]
[1758529955953,0.67,221.95,221.92,80.6]
[1758529956354,4.50572226,221.94,221.92,80.6]
[1758529956671,8.11181553,221.96,221.93,0.72]
[1758529957559,8.11181553,221.96,221.92,80.6]
[1758529957756,8.11181553,221.96,221.92,81.32]
[1758529957959,8.11181553,221.96,221.92,80.6]
[1758529958165,3.60631186,221.96,221.93,0.72]
[1758529958357,4.5051133,221.97,221.93,0.72]
[1758529959153,5.1751133,221.97,221.93,0.72]
[1758529959350,5.1751133,221.97,221.92,80.6]
[1758529959568,5.1751133,221.97,221.93,80.6]
[1758529960472,0.67,221.99,221.93,81.32]
[1758529960858,3.57035854,221.99,221.94,0.72]
[1758529961064,0.67,222.01,221.95,0.72]
[1758529961365,11.26150332,222.01,221.95,0.72]
[1758529961571,15.76576576,222.0,221.95,0.72]
[1758529961962,16.43576576,222.0,221.95,0.72]
[1758529962987,4.5045045,222.0,221.96,0.72]
[1758529963678,8.12628485,222.0,221.97,0.72]
[1758529964060,8.12628485,222.0,221.95,0.72]
[1758529964254,8.12628485,222.0,221.96,0.72]
[1758529966160,20.05754611,222.0,221.96,0.72]
[1758529966366,20.05754611,222.0,221.94,0.72]
[1758529968281,20.05754611,222.0,221.94,80.6]
[1758529968493,39.16440726,221.99,221.91,80.6]
[1758529968688,39.16440726,221.99,221.82,134.4]
[1758529968689,3.66440726,221.98,221.86,0.72]
[1758529968863,3.66440726,221.98,221.87,35.5]
[1758529969064,0.67,221.97,221.88,0.72]
[1758529969378,3.66677749,221.97,221.88,0.72]
[1758529969575,0.67,221.97,221.88,0.72]
[1758529969966,4.50531627,221.96,221.88,0.72]
[1758529970167,16.43860695,221.96,221.88,0.72]
[1758529970571,16.43860695,221.96,221.86,81.32]
[1758529970778,0.67,221.95,221.87,3.3616098]
[1758529971066,0.67,221.94,221.87,4.0816098]
[1758529971283,0.67,221.94,221.88,3.3616098]
[1758529971491,0.67,221.94,221.87,0.72]
[1758529972182,4.50592529,221.93,221.88,3.36498074]
[1758529972384,4.50592529,221.93,221.87,81.32]
[1758529972385,0.67,221.92,221.87,81.32]
[1758529972686,4.50592529,221.93,221.87,81.32]
[1758529972687,0.67,221.91,221.87,80.6]
[1758529973388,4.50653447,221.9,221.87,80.6]
[1758529973591,4.50653447,221.9,221.86,80.6]
[1758529973974,4.50653447,221.9,221.86,81.32]
[1758529974175,4.50653447,221.9,221.87,3.3660412]
[1758529974374,4.50653447,221.9,221.87,0.72]
[1758529975285,11.26605921,221.91,221.87,0.72]
[1758529975680,11.93605921,221.91,221.86,80.6]
[1758529975989,11.93605921,221.91,221.87,3.36656012]
[1758529976173,11.93605921,221.91,221.86,81.32]
[1758529976489,11.93605921,221.91,221.87,4.08728551]
[1758529976670,11.93605921,221.91,221.87,0.72]
[1758529977398,16.4423906,221.91,221.87,80.6]
[1758529978494,4.50633139,221.91,221.87,81.27]
[1758529979074,4.50633139,221.91,221.88,3.37108067]
[1758529979268,4.50633139,221.91,221.87,81.27]
[1758529979493,4.50612833,221.92,221.88,3.37100772]
[1758529979694,5.18612833,221.92,221.87,81.27]
[1758529979895,5.18612833,221.92,221.88,3.37100772]
[1758529980186,4.50612833,221.92,221.87,80.6]
[1758529980396,4.50612833,221.92,221.88,4.0420047]
[1758529980574,4.50612833,221.92,221.89,0.67]
[1758529980773,4.50612833,221.92,221.9,0.67]
[1758529981397,4.50612833,221.92,221.88,36.17]
[1758529982485,2.39442754,221.93,221.89,0.67]
[1758529982784,4.50523341,221.97,221.9,3.37341332]
[1758529982984,4.50523341,221.97,221.91,36.17]
[1758529983188,0.68,221.96,221.91,116.1]
[1758529983386,4.50572226,221.94,221.91,116.1]
[1758529983896,4.50572226,221.94,221.91,80.6]
[1758529984209,0.68,221.93,221.91,80.6]
[1758529985377,4.50612833,221.92,221.91,80.6]
[1758529985707,5.18612833,221.92,221.91,80.6]
[1758529986278,4.50612833,221.92,221.88,80.6]
[1758529986478,4.50612833,221.92,221.89,3.37664839]
[1758529986680,4.50612833,221.92,221.9,3.37664839]
[1758529986878,15.77073851,221.93,221.88,81.27]
[1758529987092,16.45073851,221.93,221.89,3.37668317]
[1758529987396,16.45073851,221.93,221.9,3.37668317]
[1758529987601,16.45073851,221.93,221.88,81.27]
[1758529987795,16.45073851,221.93,221.89,3.37678]
[1758529987981,16.45073851,221.93,221.9,3.37678]
[1758529988191,16.45073851,221.93,221.88,81.27]
[1758529988504,16.45073851,221.93,221.89,3.37674335]
[1758529988804,16.45073851,221.93,221.9,3.37674335]
[1758529989105,16.45073851,221.93,221.88,81.27]
[1758529989408,16.45073851,221.93,221.89,3.37669123]
[1758529989579,16.45073851,221.93,221.88,81.27]
[1758529989900,16.45073851,221.93,221.89,3.37684807]
[1758529990079,16.45073851,221.93,221.88,81.27]
[1758529990277,16.45073851,221.93,221.89,3.37676372]
[1758529990493,16.45073851,221.93,221.88,81.27]
[1758529990694,22.52583341,221.97,221.89,3.37671767]
[1758529990900,0.68,221.92,221.88,81.27]
[1758529991080,0.68,221.92,221.89,3.37675737]
[1758529991281,0.68,221.92,221.88,81.27]
[1758529991596,0.68,221.91,221.89,3.37659835]
[1758529991806,3.6961675,221.93,221.88,80.6]
[1758529992110,0.68,221.93,221.89,3.37659933]
[1758529992403,3.6961675,221.93,221.88,81.27]
[1758529992588,0.68,221.93,221.89,3.37648963]
[1758529992896,15.77144916,221.92,221.88,81.27]
[1758529993080,3.0161675,221.91,221.89,3.37652441]
[1758529993276,3.0161675,221.91,221.88,81.27]
[1758529993483,3.0161675,221.91,221.89,3.37638268]
[1758529993786,3.0161675,221.91,221.88,81.27]
[1758529994097,3.0161675,221.91,221.89,3.37638268]
[1758529994280,3.0161675,221.91,221.88,81.27]
[1758529994481,3.0161675,221.91,221.89,3.37625457]
[1758529994681,3.0161675,221.91,221.88,81.27]
[1758529994881,4.50653447,221.9,221.89,3.37625457]
[1758529995584,16.49287065,221.9,221.83,80.6]
[1758529995782,3.7361675,221.89,221.84,35.48]
[1758529995981,0.72,221.88,221.83,81.31]
[1758529996198,0.72,221.87,221.83,116.08]
[1758529996398,3.0161675,221.89,221.83,116.79]
[1758529996714,3.7361675,221.89,221.83,116.79]
[1758529997001,19.5104599,221.88,221.83,81.31]
[1758529997204,3.7361675,221.87,221.83,81.31]
[1758529997581,3.7361675,221.87,221.83,0.71]
[1758529997805,3.7361675,221.87,221.81,35.48]
[1758529998105,3.7361675,221.87,221.83,0.71]
[1758529998501,3.7361675,221.87,221.81,35.48]
[1758529998502,3.0161675,221.87,221.81,35.48]
[1758529998804,3.0161675,221.87,221.82,0.71]
[1758529999007,4.50734697,221.86,221.82,0.71]
[1758529999896,4.50734697,221.86,221.81,35.48]
[1758529999897,15.7757144,221.86,221.83,0.71]
[1758530000078,3.01173807,221.85,221.81,0.71]
[1758530000279,3.73173807,221.85,221.77,80.6]
[1758530000478,3.01173807,221.85,221.81,0.71]
[1758530001096,3.01173807,221.85,221.78,35.48]
[1758530001292,4.50734697,221.86,221.81,0.71]
[1758530001499,15.7757144,221.86,221.82,0.71]
[1758530001699,3.73173807,221.85,221.77,80.6]
[1758530001888,3.73173807,221.85,221.52,22.52274613]
[1758530001889,75.27173807,221.84,221.59,13.69300955]
[1758530002196,20.0,221.73,221.54,0.71]
[1758530002407,20.0,221.73,221.55,8.0]
[1758530002408,41.03173807,221.72,221.55,8.0]
[1758530002609,20.0,221.73,221.55,8.0]
[1758530002610,3.73173807,221.71,221.55,8.0]
[1758530002792,3.73173807,221.7,221.55,8.0]
[1758530002990,3.73173807,221.69,221.55,8.0]
[1758530003193,23.75256484,221.73,221.55,8.0]
[1758530003194,38.34528802,221.67,221.55,8.0]
[1758530003503,41.05173807,221.66,221.55,8.0]
[1758530003702,41.05173807,221.65,221.55,8.0]
[1758530003907,3.73173807,221.64,221.55,8.0]
[1758530004103,38.04,221.63,221.55,8.0]
[1758530004287,0.72,221.62,221.55,8.0]
[1758530004488,0.72,221.61,221.48,0.71]
[1758530004793,0.72,221.61,221.41,11.29114622]
[1758530004794,37.3,221.6,221.5,10.80692512]
[1758530004988,0.72,221.59,221.5,10.80692512]
[1758530005301,8.20898919,221.59,221.5,10.09692512]
[1758530005490,38.02,221.58,221.5,10.09692512]
[1758530005792,41.03612012,221.57,221.5,10.09692512]
[1758530005985,15.79496663,221.59,221.5,10.09692512]
[1758530005986,41.03612012,221.56,221.5,10.09692512]
[1758530006208,3.69612012,221.55,221.5,10.09692512]
[1758530006402,38.04,221.54,221.5,10.09692512]
[1758530006604,38.06,221.53,221.5,10.09692512]
[1758530006805,0.72,221.52,221.5,10.09692512]
[1758530007209,0.69,221.58,221.5,10.09692512]
[1758530007412,0.69,221.58,221.51,0.69]
[1758530007713,37.32,221.59,221.51,0.69]
[1758530007911,0.69,221.6,221.51,0.69]
[1758530008214,37.4,221.59,221.51,0.69]
[1758530008413,0.69,221.58,221.51,0.69]
[1758530008612,38.09,221.58,221.51,0.69]
[1758530008794,0.69,221.58,221.51,0.69]
[1758530009197,0.69,221.58,221.51,0.19]
[1758530009603,0.69,221.58,221.51,4.70441509]
[1758530009908,38.07,221.6,221.51,4.51441509]
[1758530010090,0.69,221.6,221.51,4.51441509]
[1758530010294,38.05,221.6,221.51,4.51441509]
[1758530010510,38.05,221.6,221.5,10.09692512]
[1758530010697,0.69,221.59,221.5,14.61148803]
[1758530010898,37.36,221.6,221.5,25.89816974]
[1758530011090,0.69,221.59,221.5,14.61148803]
[1758530011300,3.64691189,221.61,221.52,4.51426507]
[1758530011834,37.34,221.62,221.53,0.69]
[1758530012708,0.69,221.61,221.53,0.69]
[1758530013022,0.69,221.61,221.54,4.51385754]
[1758530013405,0.69,221.61,221.54,5.20385754]
[1758530013602,0.69,221.61,221.55,0.69]
[1758530013802,2.95370056,221.63,221.55,0.69]
[1758530014009,2.95370056,221.63,221.54,15.79850139]
[1758530014010,0.69,221.62,221.54,4.51385754]
[1758530014931,2.95370056,221.63,221.56,4.51345008]
[1758530015334,2.95370056,221.63,221.56,5.20345008]
[1758530015507,2.95370056,221.63,221.57,0.69]
[1758530016731,0.69,221.62,221.55,0.69]
[1758530016928,0.69,221.62,221.56,4.51345008]
[1758530017230,2.95370056,221.63,221.57,0.69]
[1758530017835,0.69,221.62,221.52,5.20421138]
[1758530018007,0.69,221.61,221.52,5.20421138]
[1758530018211,0.69,221.6,221.52,5.20421138]
[1758530019302,0.69,221.6,221.53,0.69]
[1758530020206,2.95370056,221.61,221.53,0.69]
[1758530020407,0.69,221.6,221.53,0.69]
[1758530020825,0.69,221.6,221.54,4.51385754]
[1758530021823,0.69,221.6,221.54,5.20385754]
[1758530022026,3.64370056,221.63,221.55,0.69]
[1758530022222,2.95370056,221.62,221.55,0.69]
[1758530022429,2.95370056,221.61,221.54,4.01385754]
[1758530022629,0.69,221.61,221.54,4.01385754]
[1758530022812,2.95370056,221.61,221.56,4.51345008]
[1758530023013,3.64370056,221.63,221.57,0.69]
[1758530023213,2.95370056,221.62,221.57,0.69]
[1758530023432,2.95370056,221.63,221.57,0.69]
[1758530024821,2.95370056,221.63,221.58,4.51304269]
[1758530025023,2.95370056,221.63,221.59,0.69]
[1758530025532,2.95370056,221.63,221.58,4.51304269]
[1758530025850,0.69,221.62,221.53,4.5140613]
[1758530026031,0.69,221.61,221.53,4.5140613]
[1758530026328,4.51202568,221.63,221.52,0.69]
[1758530026329,3.64370056,221.6,221.52,5.20426137]
[1758530026518,3.64370056,221.59,221.5,14.61139547]
[1758530026831,0.69,221.58,221.5,15.30139547]
[1758530027340,3.64370056,221.58,221.5,15.30139547]
[1758530027552,0.69,221.58,221.5,15.30139547]
[1758530027717,2.95370056,221.58,221.5,14.61139547]
[1758530027922,3.64370056,221.57,221.5,10.09692512]
[1758530028124,0.69,221.56,221.5,14.61157072]
[1758530028423,2.95370056,221.58,221.51,0.69]
[1758530028633,2.34292487,221.57,221.51,0.69]
[1758530028830,0.69,221.57,221.5,10.09692512]
[1758530029143,0.69,221.56,221.5,10.09692512]
[1758530029522,0.69,221.55,221.5,10.09692512]
[1758530029723,0.69,221.54,221.5,14.61158893]
[1758530029943,37.75,221.59,221.5,14.61158893]
[1758530030237,0.69,221.58,221.51,0.69]
[1758530030725,0.69,221.58,221.5,10.09692512]
[1758530030930,4.51345008,221.56,221.5,10.09692512]
[1758530031130,0.69,221.55,221.5,10.09692512]
[1758530031332,0.69,221.54,221.5,10.09692512]
[1758530032916,0.69,221.53,221.5,10.09692512]
[1758530033133,0.69,221.52,221.5,10.09692512]
[1758530033638,7.33836541,221.64,221.51,3.89638274]
[1758530033837,3.58580057,221.64,221.55,3.20638274]
[1758530034024,0.69,221.69,221.56,0.69]
[1758530034444,17.86322203,221.69,221.56,0.69]
[1758530034746,0.69,221.69,221.56,8.41403605]
[1758530034932,0.69,221.69,221.57,16.48636231]
[1758530035135,4.3168229,221.69,221.58,0.69]
[1758530036244,4.3168229,221.69,221.59,15.79493658]
[1758530036434,4.3168229,221.69,221.6,0.69]
[1758530036946,3.6268229,221.69,221.6,0.69]
[1758530037142,8.26297708,221.71,221.6,0.69]
[1758530037143,8.95297708,221.71,221.6,0.69]
[1758530037334,4.44256484,221.71,221.61,15.79351111]
[1758530037639,4.37516224,221.71,221.62,0.66]
[1758530037843,3.68516224,221.71,221.62,0.66]
[1758530038034,4.44256484,221.73,221.62,0.66]
[1758530039145,4.44256484,221.73,221.62,81.26]
[1758530039146,8.08757342,221.73,221.62,81.26]
[1758530039445,3.75256484,221.72,221.63,16.4520859]
[1758530039742,3.75256484,221.72,221.64,0.66]
[1758530040142,8.08757342,221.73,221.64,0.66]